Body Name,Body Unit ,Service Label ,Service Code ,Organisational Unit,Expenditure ,Payment Date,Transaction Number ,Net Payment ,Supplier Name ,Supplier ID 
North West Leicestershire District Council ,31UH ,Finance,FINPLA,Financial Planning,Parish precepts,26/09/2012,1244070,"173,100.00",Ashby De La Zouch Town Council,A000091
North West Leicestershire District Council ,31UH ,Finance,FINPLA,Financial Planning,Parish precepts,26/09/2012,1244067,"65,546.37",Castle Donington Parish Council,A000300
North West Leicestershire District Council ,31UH ,Property Services,PROPFM,Property Facilities Management,Builders - Office Refurb Contract,26/09/2012,1244290,"80,455.00",G F Tomlinson Building Ltd,A015236
North West Leicestershire District Council ,31UH ,Finance,FINPLA,Financial Planning,Parish precepts,26/09/2012,1244086,"62,500.00",Ibstock Parish Council,A000807
North West Leicestershire District Council ,31UH ,Housing,HRAHM,HRA Housing Management,Construction - Rewire Works,12/09/2012,1243470,"46,075.00",Lovell Respond,A038131
North West Leicestershire District Council ,31UH ,Finance,FINPLA,Financial Planning,Parish precepts,26/09/2012,1244069,"46,075.00",Ashby Woulds Town Council,A000089
North West Leicestershire District Council ,31UH ,Finance,FINPLA,Financial Planning,Parish precepts,26/09/2012,1244066,"43,935.50",Kegworth Parish Council,A000882
North West Leicestershire District Council ,31UH ,Street Management,ENOWM,Environment Waste Management,Rent payments,12/09/2012,1243179,"38,737.21",Leicestershire County Council,A000950
North West Leicestershire District Council ,31UH ,Finance,FINPLA,Financial Planning,Parish precepts,26/09/2012,1244083,"28,925.50",Ellistown And Battleflat Parish Council,A021576
North West Leicestershire District Council ,31UH ,Housing,HRAPBS,HRA Performance & Business Support,Alarms - older persons system repairs and maintenance,05/09/2012,1242450,"25,269.15",Tunstall Healthcare (UK) Limited,A001701
North West Leicestershire District Council ,31UH ,Finance,FINPLA,Financial Planning,Parish precepts,26/09/2012,1244075,"24,243.92",Ravenstone With Snibston PC,A001364
North West Leicestershire District Council ,31UH ,Finance,FINPLA,Financial Planning,Parish precepts,26/09/2012,1244078,"21,500.00","Oakthorpe, Donisthorpe &",A001234
North West Leicestershire District Council ,31UH ,Street Management,ENOT,Environment Transport,Fuel ,29/08/2012,1242674,"20,721.75",Pace Petroleum Ltd,A034942
North West Leicestershire District Council ,31UH ,Finance,EXCH,Exchequer Services,Housing Benefits,19/09/2012,1243947,"20,610.24",Rent Allowance Payments,A001381
North West Leicestershire District Council ,31UH ,Street Management,ENOT,Environment Transport,Fuel ,26/09/2012,1243962,"19,614.85",Pace Petroleum Ltd,A034942
North West Leicestershire District Council ,31UH ,Finance,BENS,Housing Benefits,Housing Benefits,31/08/2012,1242876,"19,421.95",Rent Allowance Payments,A001381
North West Leicestershire District Council ,31UH ,Property Services,PROPFM,Property Facilities Management,Builders - Office Refurb Contract,05/09/2012,1242856,"19,148.11",G F Tomlinson Building Ltd,A015236
North West Leicestershire District Council ,31UH ,Street Management,ENOWM,Environment Waste Management,Waste Disposal - Recyclable containers,29/08/2012,1242419,"18,874.80",Straight Plc,A024906
North West Leicestershire District Council ,31UH ,Communications,CS,Corporate - Customer Services,Mail Services - Franking Machines,12/09/2012,1243466,"18,000.00",Neopost Limited,A000079
North West Leicestershire District Council ,31UH ,Finance,EXCH,Exchequer Services,Housing Benefits,28/08/2012,1242703,"16,489.47",Rent Allowance Payments,A001381
North West Leicestershire District Council ,31UH ,Finance,FINPLA,Financial Planning,Parish precepts,26/09/2012,1244085,"15,525.00",Whitwick Parish Council,A038617
North West Leicestershire District Council ,31UH ,Finance,EXCH,Exchequer Services,Recruitment - Agency Broker,12/09/2012,1243607,"15,141.21",Comensura Limited,A036958
North West Leicestershire District Council ,31UH ,Finance,BENS,Housing Benefits,Housing Benefits,20/09/2012,1244020,"14,837.99",Rent Allowance Payments,A001381
North West Leicestershire District Council ,31UH ,Finance,FINPLA,Financial Planning,Parish precepts,26/09/2012,1244089,"14,500.00",Long Whatton & Diseworth PC,A001010
North West Leicestershire District Council ,31UH ,Environmental Health,EES,Environmental Services,Building Services - Disabled grants,26/09/2012,1244402,"14,475.00",Keith Armston Building Contractor,A031176
North West Leicestershire District Council ,31UH ,Finance,FINPLA,Financial Planning,Training,12/09/2012,1243251,"13,450.00",Hinckley & Bosworth Borough Council,A000770
North West Leicestershire District Council ,31UH ,Environmental Health,EES,Environmental Services,Building Services,26/09/2012,1244401,"13,402.60",John Merison BMC Ltd,A001092
North West Leicestershire District Council ,31UH ,Environmental Health,EES,Environmental Services,Disabled Facilities Grant ,05/09/2012,1243080,"13,064.40",Sandaland Properties (Measham) Ltd,A031587
North West Leicestershire District Council ,31UH ,Finance,FINPLA,Financial Planning,Parish precepts,26/09/2012,1244084,"11,502.50",Hugglescote & Donington Le Heath,A038616
North West Leicestershire District Council ,31UH ,Leisure & Culture,CULTYP,Cultural Services Children & YoungPeople,Education,12/09/2012,1243520,"11,386.00",LCC Warren Hills Primary School,A028026
North West Leicestershire District Council ,31UH ,Leisure Centres,HPLC,Hood Park Leisure Centre,IT - software services,29/08/2012,1242684,"10,895.00",Gladstone MRM Ltd,A024642
North West Leicestershire District Council ,31UH ,Finance,EXCH,Exchequer Services,Recruitment - Agency Broker,05/09/2012,1243157,"10,162.86",Comensura Limited,A036958
North West Leicestershire District Council ,31UH ,Housing Repairs,HRAHRM,HRA Housing Repairs & Maintenance,Gas & Electricity - Boiler replacement,12/09/2012,1243334,"10,137.66",Lakers UK,A031787
North West Leicestershire District Council ,31UH ,Finance,EXCH,Exchequer Services,Recruitment - Agency Broker,29/08/2012,1242787,"10,118.75",Comensura Limited,A036958
North West Leicestershire District Council ,31UH ,Finance,FINPLA,Financial Planning,Parish precepts,26/09/2012,1244073,"10,000.00",Swannington Parish Council,A001608
North West Leicestershire District Council ,31UH ,Housing,HRAPBS,HRA Performance & Business Support,IT Services - Data Capture & Document Scanning,05/09/2012,1243113,"9,305.00",Bramble.cc Limited,A036895
North West Leicestershire District Council ,31UH ,Information Technology,ICT,ICT Services,IT - software services,29/08/2012,1242796,"8,894.79",Nviron Limited,A023640
North West Leicestershire District Council ,31UH ,Finance,FINPLA,Financial Planning,Parish precepts,26/09/2012,1244076,"8,875.00",Packington Parish Council,A001257
North West Leicestershire District Council ,31UH ,Environmental Health,EES,Environmental Services,Grant payment,26/09/2012,1244406,"8,055.24",Leicestershire County Council,A038469
North West Leicestershire District Council ,31UH ,Housing Repairs,HRAHRM,HRA Housing Repairs & Maintenance,Gas & Electricity - Boiler replacement,26/09/2012,1244199,"7,764.58",Lakers UK,A031787
North West Leicestershire District Council ,31UH ,Leisure & Culture,CULTEV,Cultural Services Arts & Events,Breast Feeding Funding,19/09/2012,1243902,"7,642.00",Leicestershire Partnership NHS Trust,A038707
North West Leicestershire District Council ,31UH ,Housing Repairs,HRAHRM,HRA Housing Repairs & Maintenance,Gas & Electricity - Boiler replacement,05/09/2012,1242999,"7,520.00",Lakers UK,A031787
North West Leicestershire District Council ,31UH ,Finance,FINPLA,Financial Planning,Parish precepts,26/09/2012,1244065,"7,500.00",Belton Parish Council,A000164
North West Leicestershire District Council ,31UH ,Leisure Centres,CDCC,Castle Donington Community College,Training - Sports Leisure partnerships,12/09/2012,1243324,"7,470.00",Castle Donington Community College,A000302
North West Leicestershire District Council ,31UH ,Leisure Centres,CDCC,Castle Donington Community College,Training - Sports Leisure partnerships,12/09/2012,1243323,"7,470.00",Castle Donington Community College,A000302
North West Leicestershire District Council ,31UH ,Finance,FINPLA,Financial Planning,Parish precepts,26/09/2012,1244082,"7,360.00",Appleby Magna Parish Council,A000060
North West Leicestershire District Council ,31UH ,Information Technology,ICT,ICT Services,IT - Computer Equipment,05/09/2012,1240976,"7,300.00",ComputerLand UK Plc,A031430
North West Leicestershire District Council ,31UH ,Finance,EXCH,Exchequer Services,Recruitment - Agency Broker,26/09/2012,1244026,"7,208.10",Comensura Limited,A036958
North West Leicestershire District Council ,31UH ,Finance,EXCH,Exchequer Services,Electricity - Supply for contract 4,19/09/2012,1243832,"7,151.46",British Gas Business,A034733
North West Leicestershire District Council ,31UH ,Finance,FINPLA,Financial Planning,Parish precepts,26/09/2012,1244081,"7,000.00",Coleorton Parish Council,A000382
North West Leicestershire District Council ,31UH ,Housing Repairs,HRAHRM,HRA Housing Repairs & Maintenance,Gas & Electricity - Boiler replacement,12/09/2012,1243381,"6,912.89",Lakers UK,A031787
North West Leicestershire District Council ,31UH ,Housing,HRAPBS,HRA Performance & Business Support,Benchmarking services,05/09/2012,1243116,"6,718.62",Housemark Ltd,A033843
North West Leicestershire District Council ,31UH ,Finance,FINPLA,Financial Planning,Parish precepts,26/09/2012,1244068,"6,500.00",Breedon On The Hill Parish Council,A000215
North West Leicestershire District Council ,31UH ,Housing,HRAPBS,HRA Performance & Business Support,Training,05/09/2012,1242618,"6,396.11",Hinckley & Bosworth Borough Council,A000770
North West Leicestershire District Council ,31UH ,Housing Repairs,HRAHRM,HRA Housing Repairs & Maintenance,Building Services - Housing - HPIP 9 - 10,29/08/2012,1242718,"6,140.10",Apollo Property Services Group Limited,A036945
North West Leicestershire District Council ,31UH ,Environmental Health,EES,Environmental Services,Grant payment,26/09/2012,1244403,"6,047.84",Leicestershire County Council,A038469
North West Leicestershire District Council ,31UH ,Housing Repairs,HRAHRM,HRA Housing Repairs & Maintenance,Building Services - Housing - HPIP 9 - 10,19/09/2012,1243916,"5,994.69",Apollo Property Services Group Limited,A036945
North West Leicestershire District Council ,31UH ,Housing Repairs,HRAHRM,HRA Housing Repairs & Maintenance,Building Services - Housing - HPIP 9 - 10,19/09/2012,1243917,"5,994.69",Apollo Property Services Group Limited,A036945
North West Leicestershire District Council ,31UH ,Housing Repairs,HRAHRM,HRA Housing Repairs & Maintenance,Building Services - Housing - HPIP 9 - 10,29/08/2012,1242744,"5,978.22",Apollo Property Services Group Limited,A036945
North West Leicestershire District Council ,31UH ,Housing Repairs,HRAHRM,HRA Housing Repairs & Maintenance,Building Services - Housing - HPIP 9 - 10,29/08/2012,1242729,"5,842.91",Apollo Property Services Group Limited,A036945
North West Leicestershire District Council ,31UH ,Housing Repairs,HRAHRM,HRA Housing Repairs & Maintenance,Building Services - Housing - HPIP 9 - 10,29/08/2012,1242730,"5,842.91",Apollo Property Services Group Limited,A036945
North West Leicestershire District Council ,31UH ,Housing Repairs,HRAHRM,HRA Housing Repairs & Maintenance,Building Services - Housing - HPIP 9 - 10,29/08/2012,1242731,"5,842.91",Apollo Property Services Group Limited,A036945
North West Leicestershire District Council ,31UH ,Housing Repairs,HRAHRM,HRA Housing Repairs & Maintenance,Building Services - Housing - HPIP 9 - 10,19/09/2012,1243924,"5,842.91",Apollo Property Services Group Limited,A036945
North West Leicestershire District Council ,31UH ,Housing Repairs,HRAHRM,HRA Housing Repairs & Maintenance,Building Services - Housing - HPIP 9 - 10,19/09/2012,1243925,"5,842.91",Apollo Property Services Group Limited,A036945
North West Leicestershire District Council ,31UH ,Housing Repairs,HRAHRM,HRA Housing Repairs & Maintenance,Building Services - Housing - HPIP 9 - 10,19/09/2012,1243926,"5,842.91",Apollo Property Services Group Limited,A036945
North West Leicestershire District Council ,31UH ,Housing Repairs,HRAHRM,HRA Housing Repairs & Maintenance,Gas & Electricity - Boiler replacement,12/09/2012,1243331,"5,830.47",Lakers UK,A031787
North West Leicestershire District Council ,31UH ,Housing Repairs,HRAHRM,HRA Housing Repairs & Maintenance,Building Services - Housing - HPIP 9 - 10,19/09/2012,1243922,"5,827.21",Apollo Property Services Group Limited,A036945
North West Leicestershire District Council ,31UH ,Housing Repairs,HRAHRM,HRA Housing Repairs & Maintenance,Waste Disposal - Confidential ,19/09/2012,1243702,"5,795.19",Groundwork Leicester & Leicestershire Limited,A036206
North West Leicestershire District Council ,31UH ,Finance,FINPLA,Financial Planning,Parish precepts,26/09/2012,1244080,"5,748.50",Heather Parish Council,A000749
North West Leicestershire District Council ,31UH ,Housing Repairs,HRAHRM,HRA Housing Repairs & Maintenance,Building Services - Housing - HPIP 9 - 10,29/08/2012,1242721,"5,745.06",Apollo Property Services Group Limited,A036945
North West Leicestershire District Council ,31UH ,Housing Repairs,HRAHRM,HRA Housing Repairs & Maintenance,Building Services,12/09/2012,1243598,"5,639.26",J Tomlinson Ltd,A033342
North West Leicestershire District Council ,31UH ,Housing Repairs,HRAHRM,HRA Housing Repairs & Maintenance,Building Services - Housing - HPIP 9 - 10,29/08/2012,1242728,"5,596.46",Apollo Property Services Group Limited,A036945
North West Leicestershire District Council ,31UH ,Housing Repairs,HRAHRM,HRA Housing Repairs & Maintenance,Building Services - Housing - HPIP 9 - 10,29/08/2012,1242726,"5,399.55",Apollo Property Services Group Limited,A036945
North West Leicestershire District Council ,31UH ,Housing Repairs,HRAHRM,HRA Housing Repairs & Maintenance,Building Services - Housing - HPIP 9 - 10,29/08/2012,1242727,"5,399.55",Apollo Property Services Group Limited,A036945
North West Leicestershire District Council ,31UH ,Housing Repairs,HRAHRM,HRA Housing Repairs & Maintenance,Gas & Electricity - Boiler replacement,26/09/2012,1244138,"5,372.91",Lakers UK,A031787
North West Leicestershire District Council ,31UH ,Housing Repairs,HRAHRM,HRA Housing Repairs & Maintenance,Building Services - Housing - HPIP 9 - 10,19/09/2012,1243927,"5,327.06",Apollo Property Services Group Limited,A036945
North West Leicestershire District Council ,31UH ,Housing Repairs,HRAHRM,HRA Housing Repairs & Maintenance,Building Services - Housing - HPIP 9 - 10,19/09/2012,1243921,"5,287.20",Apollo Property Services Group Limited,A036945
North West Leicestershire District Council ,31UH ,Housing Repairs,HRAHRM,HRA Housing Repairs & Maintenance,Building Services - Housing - HPIP 9 - 10,19/09/2012,1243923,"5,287.20",Apollo Property Services Group Limited,A036945
North West Leicestershire District Council ,31UH ,Housing Repairs,HRAHRM,HRA Housing Repairs & Maintenance,Building Services - Housing - HPIP 9 - 10,29/08/2012,1242741,"5,273.91",Apollo Property Services Group Limited,A036945
North West Leicestershire District Council ,31UH ,Housing Repairs,HRAHRM,HRA Housing Repairs & Maintenance,Gas & Electricity - Boiler replacement,12/09/2012,1243393,"5,269.19",Lakers UK,A031787
North West Leicestershire District Council ,31UH ,Environmental Health,EEHL,Environmental Health & Licensing,Disabled Facilities Grant ,19/09/2012,1243936,"5,145.48",Sandaland Properties (Measham) Ltd,A031587
North West Leicestershire District Council ,31UH ,Housing Repairs,HRAHRM,HRA Housing Repairs & Maintenance,Building Services - Housing - HPIP 9 - 10,29/08/2012,1242732,"5,128.94",Apollo Property Services Group Limited,A036945
North West Leicestershire District Council ,31UH ,Housing Repairs,HRAHRM,HRA Housing Repairs & Maintenance,Building Services - Housing - HPIP 9 - 10,19/09/2012,1243928,"5,128.94",Apollo Property Services Group Limited,A036945
North West Leicestershire District Council ,31UH ,Housing Repairs,HRAHRM,HRA Housing Repairs & Maintenance,Building Services - Housing - HPIP 9 - 10,29/08/2012,1242740,"5,114.44",Apollo Property Services Group Limited,A036945
North West Leicestershire District Council ,31UH ,Housing Repairs,HRAHRM,HRA Housing Repairs & Maintenance,Waste Disposal - Confidential ,19/09/2012,1243701,"5,107.18",Groundwork Leicester & Leicestershire Limited,A036206
North West Leicestershire District Council ,31UH ,Housing Repairs,HRAHRM,HRA Housing Repairs & Maintenance,Building Services - Housing - HPIP 9 - 10,29/08/2012,1242742,"5,010.55",Apollo Property Services Group Limited,A036945
North West Leicestershire District Council ,31UH ,Housing Repairs,HRAHRM,HRA Housing Repairs & Maintenance,Gas & Electricity - Boiler replacement,12/09/2012,1243333,"5,010.52",Lakers UK,A031787
North West Leicestershire District Council ,31UH ,Housing Repairs,HRAHRM,HRA Housing Repairs & Maintenance,Gas & Electricity - Boiler replacement,12/09/2012,1243382,"4,952.88",Lakers UK,A031787
North West Leicestershire District Council ,31UH ,Housing Repairs,HRAHRM,HRA Housing Repairs & Maintenance,Building Services - Housing - HPIP 9 - 10,29/08/2012,1242738,"4,935.65",Apollo Property Services Group Limited,A036945
North West Leicestershire District Council ,31UH ,Housing Repairs,HRAHRM,HRA Housing Repairs & Maintenance,Building Services - Housing - HPIP 9 - 10,29/08/2012,1242743,"4,889.74",Apollo Property Services Group Limited,A036945
North West Leicestershire District Council ,31UH ,Housing Repairs,HRAHRM,HRA Housing Repairs & Maintenance,Building Services - Housing - HPIP 9 - 10,29/08/2012,1242720,"4,868.00",Apollo Property Services Group Limited,A036945
North West Leicestershire District Council ,31UH ,Housing Repairs,HRAHRM,HRA Housing Repairs & Maintenance,Building Services - Housing - HPIP 9 - 10,29/08/2012,1242739,"4,863.17",Apollo Property Services Group Limited,A036945
North West Leicestershire District Council ,31UH ,Housing Repairs,HRAHRM,HRA Housing Repairs & Maintenance,Building Services - Housing - HPIP 9 - 10,29/08/2012,1242722,"4,857.11",Apollo Property Services Group Limited,A036945
North West Leicestershire District Council ,31UH ,Housing Repairs,HRAHRM,HRA Housing Repairs & Maintenance,Building Services - Housing - HPIP 9 - 10,29/08/2012,1242719,"4,848.67",Apollo Property Services Group Limited,A036945
North West Leicestershire District Council ,31UH ,Housing Repairs,HRAHRM,HRA Housing Repairs & Maintenance,Building Services - Housing - HPIP 9 - 10,19/09/2012,1243911,"4,848.67",Apollo Property Services Group Limited,A036945
North West Leicestershire District Council ,31UH ,Leisure & Culture,CULTEV,Cultural Services Arts & Events,Grant,19/09/2012,1243813,"4,750.00",Ibstock Community College,A027508
North West Leicestershire District Council ,31UH ,Information Technology,ICT,ICT Services,IT - Website Maintenance,26/09/2012,1243967,"4,676.75",Firmstep,A030931
North West Leicestershire District Council ,31UH ,Housing Repairs,HRAHRM,HRA Housing Repairs & Maintenance,Building Services - Housing - HPIP 9 - 10,29/08/2012,1242723,"4,526.11",Apollo Property Services Group Limited,A036945
North West Leicestershire District Council ,31UH ,Housing Repairs,HRAHRM,HRA Housing Repairs & Maintenance,Gas & Electricity - Boiler replacement,05/09/2012,1243000,"4,512.00",Lakers UK,A031787
North West Leicestershire District Council ,31UH ,Finance,FINPLA,Financial Planning,Parish precepts,26/09/2012,1244071,"4,500.00",Worthington Parish Council,A001813
North West Leicestershire District Council ,31UH ,Housing Repairs,HRAHRM,HRA Housing Repairs & Maintenance,Gas & Electricity - Boiler replacement,26/09/2012,1244136,"4,446.67",Lakers UK,A031787
North West Leicestershire District Council ,31UH ,Leisure Centres,HLBC,Hermitage Bar & Catering,Catering Supplies - Beverages,26/09/2012,1244114,"4,429.00",WaverleyTBS Ltd,A032632
North West Leicestershire District Council ,31UH ,Information Technology,ICT,ICT Services,IT - software services,29/08/2012,1242620,"4,411.50",Phoenix Software Limited,A001298
North West Leicestershire District Council ,31UH ,Information Technology,ICT,ICT Services,ITC Services,19/09/2012,1243819,"4,275.00",Infosec Cloud Ltd,A039730
North West Leicestershire District Council ,31UH ,Information Technology,ICT,ICT Services,IT - Telephone and computing,12/09/2012,1243601,"4,156.33",Virgin Media Business,A008908
North West Leicestershire District Council ,31UH ,Information Technology,ICT,ICT Services,IT - Software Systems,19/09/2012,1243849,"4,032.57",LANDesk Technologies Ltd,A034145
North West Leicestershire District Council ,31UH ,Housing,HRAPBS,HRA Performance & Business Support,IT - Telecommunications and data services,12/09/2012,1243203,"4,024.04",Freedom Communications (UK) Ltd,A032826
North West Leicestershire District Council ,31UH ,Housing Repairs,HRAHRM,HRA Housing Repairs & Maintenance,Building Services - Housing - HPIP 9 - 10,19/09/2012,1243914,"3,960.73",Apollo Property Services Group Limited,A036945
North West Leicestershire District Council ,31UH ,Housing Repairs,HRAHRM,HRA Housing Repairs & Maintenance,Building Services - Housing - HPIP 9 - 10,19/09/2012,1243915,"3,960.73",Apollo Property Services Group Limited,A036945
North West Leicestershire District Council ,31UH ,Housing Repairs,HRAHRM,HRA Housing Repairs & Maintenance,Building Services - Housing - HPIP 9 - 10,19/09/2012,1243929,"3,960.73",Apollo Property Services Group Limited,A036945
North West Leicestershire District Council ,31UH ,Housing Repairs,HRAHRM,HRA Housing Repairs & Maintenance,Gas & Electricity - Boiler replacement,26/09/2012,1244139,"3,946.59",Lakers UK,A031787
North West Leicestershire District Council ,31UH ,Planning & Development,ECCTV,Environment - Town Centre/CCTV,Security - Provide Monitoring Services in respect of CCTV,12/09/2012,1243459,"3,923.00",Premier Security Services (Midlands) Limited,A038132
North West Leicestershire District Council ,31UH ,Housing Repairs,HRAHRM,HRA Housing Repairs & Maintenance,Gas & Electricity - Boiler replacement,26/09/2012,1244174,"3,920.35",Lakers UK,A031787
North West Leicestershire District Council ,31UH ,Housing,HRAHM,HRA Housing Management,Noise recorder,12/09/2012,1242922,"3,835.75",Acoustic Instruments International,A039710
North West Leicestershire District Council ,31UH ,Housing Repairs,HRAHRM,HRA Housing Repairs & Maintenance,Building Services - Housing - HPIP 9 - 10,19/09/2012,1243912,"3,829.05",Apollo Property Services Group Limited,A036945
North West Leicestershire District Council ,31UH ,Housing Repairs,HRAHRM,HRA Housing Repairs & Maintenance,Building Services - Housing - HPIP 9 - 10,19/09/2012,1243913,"3,829.05",Apollo Property Services Group Limited,A036945
North West Leicestershire District Council ,31UH ,Legal & Democratic,LDLS,Legal Services,Professional Services,26/09/2012,1244413,"3,766.00",Anthony Collins Solicitors,A027936
North West Leicestershire District Council ,31UH ,Corporate Director,HR,Human Resources,Professional Services,05/09/2012,1242824,"3,750.00",IRG Advisors LLP,A039706
North West Leicestershire District Council ,31UH ,Housing Repairs,HRAHRM,HRA Housing Repairs & Maintenance,Gas & Electricity - Boiler replacement,26/09/2012,1244169,"3,743.53",Lakers UK,A031787
North West Leicestershire District Council ,31UH ,Housing Repairs,HRAHRM,HRA Housing Repairs & Maintenance,Building Services - Housing - HPIP 9 - 10,29/08/2012,1242724,"3,742.07",Apollo Property Services Group Limited,A036945
North West Leicestershire District Council ,31UH ,Housing Repairs,HRAHRM,HRA Housing Repairs & Maintenance,Building Services - Housing - HPIP 9 - 10,29/08/2012,1242725,"3,742.07",Apollo Property Services Group Limited,A036945
North West Leicestershire District Council ,31UH ,Finance,EXCH,Exchequer Services,Rent,12/09/2012,1243500,"3,672.54",Co-Operative Bank Plc,A000357
North West Leicestershire District Council ,31UH ,Housing Repairs,HRAHRM,HRA Housing Repairs & Maintenance,Building Services - Housing - HPIP 9 - 10,29/08/2012,1242717,"3,667.17",Apollo Property Services Group Limited,A036945
North West Leicestershire District Council ,31UH ,Communications,CP,Corporate - Communications,Print Services,19/09/2012,1243519,"3,500.00",Print & Digital Associates,A039357
North West Leicestershire District Council ,31UH ,Property Services,PROPFM,Property Facilities Management,Energy - Electricity - Contract 1,12/09/2012,1243471,"3,456.73",Southern Electric,A030266
North West Leicestershire District Council ,31UH ,Planning & Development,EBC,Building Control,Document Scanning,26/09/2012,1244277,"3,374.89",Stor-a-File Ltd,A039264
North West Leicestershire District Council ,31UH ,Finance,FINPLA,Financial Planning,Parish precepts,26/09/2012,1244064,"3,350.00",Lockington Cum Hemington PC,A000999
North West Leicestershire District Council ,31UH ,Leisure & Culture,CULTEV,Cultural Services Arts & Events,Professional Services,29/08/2012,1242670,"3,346.00",LCC Ibstock Community College,A029866
North West Leicestershire District Council ,31UH ,Leisure Centres,HPLC,Hood Park Leisure Centre,Licenses - Music,12/09/2012,1243246,"3,264.61",The Performing Right Society,A001293
North West Leicestershire District Council ,31UH ,Environmental Health,EES,Environmental Services,Grant payment,19/09/2012,1243761,"3,236.00",Leicestershire County Council,A038469
North West Leicestershire District Council ,31UH ,Leisure Centres,HLC,Hermitage Leisure Centre,Leisure - Spares for Water Inflatables,12/09/2012,1243240,"3,235.00",Airquee Ltd,A028733
North West Leicestershire District Council ,31UH ,Information Technology,ICT,ICT Services,IT - Telecommunications and data services,05/09/2012,1242378,"3,120.00",Freedom Communications (UK) Ltd,A032826
North West Leicestershire District Council ,31UH ,Housing Repairs,HRAHRM,HRA Housing Repairs & Maintenance,Gas & Electricity - Boiler replacement,05/09/2012,1242940,"3,094.76",Lakers UK,A031787
North West Leicestershire District Council ,31UH ,Finance,FINPLA,Financial Planning,Parish precepts,26/09/2012,1244074,"3,088.00",Snarestone Parish Council,A001524
North West Leicestershire District Council ,31UH ,Information Technology,ICT,ICT Services,Photocopiers and consumables,12/09/2012,1243608,"3,067.15",The Danwood Group Ltd,A001301
North West Leicestershire District Council ,31UH ,Housing Repairs,HRAHRM,HRA Housing Repairs & Maintenance,Gas & Electricity - Boiler replacement,05/09/2012,1242978,"3,043.47",Lakers UK,A031787
North West Leicestershire District Council ,31UH ,Street Management,ENOWM,Environment Waste Management,Waste Management,29/08/2012,1242702,"3,033.42",ESE Limited,A001253
North West Leicestershire District Council ,31UH ,Leisure Centres,HLC,Hermitage Leisure Centre,Licenses - Music,26/09/2012,1244062,"2,968.17",The Performing Right Society,A001293
North West Leicestershire District Council ,31UH ,Housing,HRAHM,HRA Housing Management,Fuel - solid,19/09/2012,1243873,"2,880.82",Coal4Energy Ltd,A031928
North West Leicestershire District Council ,31UH ,Finance,FINPLA,Financial Planning,"Printing- Council Tax, NNDR and benefits",12/09/2012,1243290,"2,873.20",CFH - Total Document Management Limited,A038192
North West Leicestershire District Council ,31UH ,Housing Repairs,HRAHRM,HRA Housing Repairs & Maintenance,Gas & Electricity - Boiler replacement,29/08/2012,1242575,"2,872.08",Lakers UK,A031787
North West Leicestershire District Council ,31UH ,Legal & Democratic,LDLS,Legal Services,Professional Services,05/09/2012,1243085,"2,850.00",Sindy B Communications Ltd,A039474
North West Leicestershire District Council ,31UH ,Housing Repairs,HRAHRM,HRA Housing Repairs & Maintenance,Gas & Electricity - Boiler replacement,12/09/2012,1243378,"2,808.22",Lakers UK,A031787
North West Leicestershire District Council ,31UH ,Housing Repairs,HRAHRM,HRA Housing Repairs & Maintenance,Gas & Electricity - Boiler replacement,12/09/2012,1243332,"2,762.92",Lakers UK,A031787
North West Leicestershire District Council ,31UH ,Environmental Health,EEHL,Environmental Health & Licensing,Welfare Funeral ,12/09/2012,1243255,"2,725.92",OH Parsons & Partners,A039741
North West Leicestershire District Council ,31UH ,Housing Repairs,HRAHRM,HRA Housing Repairs & Maintenance,Gas & Electricity - Boiler replacement,29/08/2012,1242521,"2,722.73",Lakers UK,A031787
North West Leicestershire District Council ,31UH ,Housing Repairs,HRAHRM,HRA Housing Repairs & Maintenance,Gas & Electricity - Boiler replacement,29/08/2012,1242516,"2,660.09",Lakers UK,A031787
North West Leicestershire District Council ,31UH ,Finance,EXCH,Exchequer Services,Rent,12/09/2012,1243501,"2,593.77",Co-Operative Bank Plc,A000357
North West Leicestershire District Council ,31UH ,Leisure & Culture,CULTEV,Cultural Services Arts & Events,Charity Services - Voluntary services,12/09/2012,1243492,"2,550.00",MRC Community Action,A001208
North West Leicestershire District Council ,31UH ,Housing Repairs,HRAHRM,HRA Housing Repairs & Maintenance,Gas & Electricity - Boiler replacement,05/09/2012,1242983,"2,539.96",Lakers UK,A031787
North West Leicestershire District Council ,31UH ,Finance,FINPLA,Financial Planning,Leasing - Vehicles and Equipment,12/09/2012,1243469,"2,525.00",Asset Advantage Limited,A034516
North West Leicestershire District Council ,31UH ,Housing Repairs,HRAHRM,HRA Housing Repairs & Maintenance,Gas & Electricity - Boiler replacement,29/08/2012,1242515,"2,521.79",Lakers UK,A031787
North West Leicestershire District Council ,31UH ,Housing Repairs,HRAHRM,HRA Housing Repairs & Maintenance,Gas & Electricity - Boiler replacement,05/09/2012,1242980,"2,515.27",Lakers UK,A031787
North West Leicestershire District Council ,31UH ,Housing Repairs,HRAHRM,HRA Housing Repairs & Maintenance,Fuel servicing (Hsg Maintenance),12/09/2012,1243457,"2,512.03",Elite Sweep Service,A035675
North West Leicestershire District Council ,31UH ,Finance,FINPLA,Financial Planning,Parish precepts,26/09/2012,1244077,"2,480.00",Osgathorpe Parish Council,A001251
North West Leicestershire District Council ,31UH ,Housing Repairs,HRAHRM,HRA Housing Repairs & Maintenance,Gas & Electricity - Boiler replacement,26/09/2012,1244238,"2,479.40",Lakers UK,A031787
North West Leicestershire District Council ,31UH ,Housing Repairs,HRAHRM,HRA Housing Repairs & Maintenance,Gas & Electricity - Boiler replacement,29/08/2012,1242481,"2,474.26",Lakers UK,A031787
North West Leicestershire District Council ,31UH ,Finance,FINPLA,Financial Planning,Parish precepts,26/09/2012,1244072,"2,441.00",Swepstone Parish Council,A001613
North West Leicestershire District Council ,31UH ,Street Management,ENOT,Environment Transport,Oil Products,29/08/2012,1242655,"2,423.50",Freedom Lubricants Ltd,A028311
North West Leicestershire District Council ,31UH ,Housing Repairs,HRAHRM,HRA Housing Repairs & Maintenance,Gas & Electricity - Boiler replacement,29/08/2012,1242558,"2,400.00",Lakers UK,A031787
North West Leicestershire District Council ,31UH ,Housing Repairs,HRAHRM,HRA Housing Repairs & Maintenance,Gas & Electricity - Boiler replacement,05/09/2012,1242975,"2,400.00",Lakers UK,A031787
North West Leicestershire District Council ,31UH ,Housing Repairs,HRAHRM,HRA Housing Repairs & Maintenance,Gas & Electricity - Boiler replacement,05/09/2012,1242981,"2,400.00",Lakers UK,A031787
North West Leicestershire District Council ,31UH ,Leisure Centres,HLC,Hermitage Leisure Centre,Water - Sewerage services,05/09/2012,1242849,"2,392.62",Severn Trent Water Limited,A001468
North West Leicestershire District Council ,31UH ,Housing Repairs,HRAHRM,HRA Housing Repairs & Maintenance,Gas & Electricity - Boiler replacement,12/09/2012,1243351,"2,318.00",Lakers UK,A031787
North West Leicestershire District Council ,31UH ,Housing Repairs,HRAHRM,HRA Housing Repairs & Maintenance,Gas & Electricity - Boiler replacement,12/09/2012,1243380,"2,302.18",Lakers UK,A031787
North West Leicestershire District Council ,31UH ,Leisure Centres,HLC,Hermitage Leisure Centre,Energy - Electricity - Contract 1,26/09/2012,1244123,"2,240.75",Southern Electric,A030266
North West Leicestershire District Council ,31UH ,Legal & Democratic,LDLS,Legal Services,Legal services - town planning,05/09/2012,1242920,"2,206.68",Marrons Consultancies Limited,A016315
North West Leicestershire District Council ,31UH ,Street Management,ENOP,Environment Parks,Horticulture - Weed Remover Products,29/08/2012,1242678,"2,200.00",Complete Weed Control,A000392
North West Leicestershire District Council ,31UH ,Property Services,PROPCL,Property Commercial Lettings,Mail Supplies -Franking Machine,12/09/2012,1243594,"2,119.65",Purchase Power,A008204
North West Leicestershire District Council ,31UH ,Housing Repairs,HRAHRM,HRA Housing Repairs & Maintenance,Gas & Electricity - Boiler replacement,26/09/2012,1244171,"2,108.42",Lakers UK,A031787
North West Leicestershire District Council ,31UH ,Leisure Centres,HPLC,Hood Park Leisure Centre,Energy - Electricity - Contract 1,19/09/2012,1243830,"2,094.37",Southern Electric,A030266
North West Leicestershire District Council ,31UH ,Leisure Centres,HPLC,Hood Park Leisure Centre,Water - Sewerage services,19/09/2012,1243831,"2,089.03",Severn Trent Water Limited,A001468
North West Leicestershire District Council ,31UH ,Housing Repairs,HRAHRM,HRA Housing Repairs & Maintenance,Waste - Tipping building,19/09/2012,1243825,"2,075.33",Ward Recycling,A035471
North West Leicestershire District Council ,31UH ,Environmental Health,EES,Environmental Services,Disabled Facilities Grant ,26/09/2012,1244416,"2,035.00",Belton Developments,A039798
North West Leicestershire District Council ,31UH ,Housing,HRAPBS,HRA Performance & Business Support,Subscription - Lifeline Telecare,29/08/2012,1242449,"2,009.81",Midlands Telecare,A034150
North West Leicestershire District Council ,31UH ,Housing Repairs,HRAHRM,HRA Housing Repairs & Maintenance,Gas & Electricity - Boiler replacement,26/09/2012,1244172,"1,956.49",Lakers UK,A031787
North West Leicestershire District Council ,31UH ,Corporate Director,CORDI,Corporate Director,Professional Services,12/09/2012,1243296,"1,867.33",Broadsted Associates Ltd,A039356
North West Leicestershire District Council ,31UH ,Housing Repairs,HRAHRM,HRA Housing Repairs & Maintenance,Gas & Electricity - Boiler replacement,12/09/2012,1243349,"1,830.52",Lakers UK,A031787
North West Leicestershire District Council ,31UH ,Information Technology,ICT,ICT Services,IT - Telecommunications and data services,12/09/2012,1243603,"1,824.58",Freedom Communications (UK) Ltd,A032826
North West Leicestershire District Council ,31UH ,Legal & Democratic,LDELC,Electoral & Land Charges,Mail services,29/08/2012,1242686,"1,800.00",Royal Mail Group Plc,A001418
North West Leicestershire District Council ,31UH ,Environmental Health,EES,Environmental Services,Grant payment,19/09/2012,1243763,"1,765.00",Leicestershire County Council,A038469
North West Leicestershire District Council ,31UH ,Housing Repairs,HRAHRM,HRA Housing Repairs & Maintenance,Gas & Electricity - Boiler replacement,05/09/2012,1242979,"1,723.21",Lakers UK,A031787
North West Leicestershire District Council ,31UH ,Leisure & Culture,LCM,Leisure & Cult Mangt,Grants,05/09/2012,1243151,"1,720.83",Age Concern Leicestershire & Rutland (Welfare services) ltd,A027552
North West Leicestershire District Council ,31UH ,Street Management,ENOT,Environment Transport,Waste - Baling wire manufacturers,12/09/2012,1243285,"1,680.00",DR Baling Wire Manufacturers Ltd,A032890
North West Leicestershire District Council ,31UH ,Leisure Centres,HLC,Hermitage Leisure Centre,Travel costs,26/09/2012,1243996,"1,680.00",Stathams Coaches Ltd,A027406
North West Leicestershire District Council ,31UH ,Leisure & Culture,LCM,Leisure & Cult Mangt,Home Safety Asssessments,12/09/2012,1243266,"1,655.00",Safe Start-Home Safety,A039090
North West Leicestershire District Council ,31UH ,Finance,EXCH,Exchequer Services,Rent,12/09/2012,1243502,"1,634.56",Co-Operative Bank Plc,A000357
North West Leicestershire District Council ,31UH ,Property Services,PROPFM,Property Facilities Management,Legionella Risk Assessments,05/09/2012,1242171,"1,621.00",Rentokil Initial UK Limited,A037013
North West Leicestershire District Council ,31UH ,Housing Repairs,HRAHRM,HRA Housing Repairs & Maintenance,Gas & Electricity - Boiler replacement,19/09/2012,1243633,"1,618.84",Lakers UK,A031787
North West Leicestershire District Council ,31UH ,Leisure Centres,HLC,Hermitage Leisure Centre,Boiler Maintenance until March 2010 only,05/09/2012,1242456,"1,572.50",Wellman Thermal Services Limited,A002298
North West Leicestershire District Council ,31UH ,Environmental Health,EEHL,Environmental Health & Licensing,Grants,12/09/2012,1243254,"1,569.88",Adaptions,A038668
North West Leicestershire District Council ,31UH ,Housing Repairs,HRAHRM,HRA Housing Repairs & Maintenance,Gas & Electricity - Boiler replacement,26/09/2012,1244133,"1,559.72",Lakers UK,A031787
North West Leicestershire District Council ,31UH ,Housing,HRAHM,HRA Housing Management,Fuel - solid,19/09/2012,1243874,"1,546.51",Coal4Energy Ltd,A031928
North West Leicestershire District Council ,31UH ,Finance,FINPLA,Financial Planning,Parish precepts,26/09/2012,1244088,"1,500.00",Charley Parish Council,A000322
North West Leicestershire District Council ,31UH ,Leisure & Culture,CULTEV,Cultural Services Arts & Events,Sound & Lighting - Corporate Events,12/09/2012,1243284,"1,500.00",Chameleon Pro Audio & Lighting Ltd,A027592
North West Leicestershire District Council ,31UH ,Planning & Development,EBC,Building Control,Professional Services,26/09/2012,1244031,"1,500.00",LABC Consult Ltd,A039227
North West Leicestershire District Council ,31UH ,Street Management,ENOGT,Environment General Technician,Small civils and plant hire,26/09/2012,1244021,"1,495.00",Cuckoo Gap Limited,A000438
North West Leicestershire District Council ,31UH ,Street Management,ENOT,Environment Transport,Water - Sewerage services,05/09/2012,1243110,"1,476.60",Severn Trent Water Limited,A001468
North West Leicestershire District Council ,31UH ,Planning & Development,ECCTV,Environment - Town Centre/CCTV,Security Services - CCTV Maintenance,05/09/2012,1241337,"1,409.33",Quadrant Security Group Limited,A035493
North West Leicestershire District Council ,31UH ,Planning & Development,ECCTV,Environment - Town Centre/CCTV,Security Services - CCTV Maintenance,19/09/2012,1243816,"1,409.33",Quadrant Security Group Limited,A035493
North West Leicestershire District Council ,31UH ,Planning & Development,EDC,Environment - Development Control,Training,26/09/2012,1244035,"1,372.92",Hinckley & Bosworth Borough Council,A000770
North West Leicestershire District Council ,31UH ,Housing Repairs,HRAHRM,HRA Housing Repairs & Maintenance,Gas & Electricity - Boiler replacement,29/08/2012,1242494,"1,365.12",Lakers UK,A031787
North West Leicestershire District Council ,31UH ,Housing Repairs,HRAHRM,HRA Housing Repairs & Maintenance,Gas & Electricity - Boiler replacement,26/09/2012,1244173,"1,339.36",Lakers UK,A031787
North West Leicestershire District Council ,31UH ,Street Management,ENOT,Environment Transport,Vehicle Repairs - Road Sweepers,19/09/2012,1243864,"1,334.75",Scarab Sweepers Limited,A001445
North West Leicestershire District Council ,31UH ,Leisure Centres,HPLC,Hood Park Leisure Centre,Leisure - Swimwear and accessories,19/09/2012,1243833,"1,331.52",Zoggs International Ltd,A001833
North West Leicestershire District Council ,31UH ,Street Management,ENOT,Environment Transport,Machinery equipment,12/09/2012,1243513,"1,319.96",Joe Turner (Equipment) Limited,A036678
North West Leicestershire District Council ,31UH ,Environmental Health,EES,Environmental Services,Grant payment,05/09/2012,1243079,"1,315.00",Leicestershire County Council,A038469
North West Leicestershire District Council ,31UH ,Planning & Development,EBC,Building Control,IT - solutions,12/09/2012,1243267,"1,298.00",Resolution Data Management Ltd,A024994
North West Leicestershire District Council ,31UH ,Housing Repairs,HRAHRM,HRA Housing Repairs & Maintenance,Gas & Electricity - Boiler replacement,19/09/2012,1243662,"1,290.21",Lakers UK,A031787
North West Leicestershire District Council ,31UH ,Property Services,PROPFM,Property Facilities Management,Security Systems - Fire Detection,29/08/2012,1242682,"1,282.50",TECSERV UK LIMITED,A028261
North West Leicestershire District Council ,31UH ,Corporate Director,HR,Human Resources,Consultancy,05/09/2012,1242828,"1,275.00",Penna Plc,A027814
North West Leicestershire District Council ,31UH ,Housing Repairs,HRAHRM,HRA Housing Repairs & Maintenance,Gas & Electricity - Boiler replacement,05/09/2012,1242954,"1,270.62",Lakers UK,A031787
North West Leicestershire District Council ,31UH ,Leisure Centres,HPLC,Hood Park Leisure Centre,Building - General Maintenance works - Minor framework,05/09/2012,1242883,"1,247.63",Herbert Baggaley Construction Limited,A036241
North West Leicestershire District Council ,31UH ,Planning & Development,ECCTV,Environment - Town Centre/CCTV,Alarm Systems,12/09/2012,1243217,"1,245.00",Detector Alarms Ltd,A039657
North West Leicestershire District Council ,31UH ,Corporate Director,HR,Human Resources,Advertising Agency,05/09/2012,1243100,"1,230.19",Euro RSCG People T/A Havas People Ltd,A001395
North West Leicestershire District Council ,31UH ,Housing Repairs,HRAHRM,HRA Housing Repairs & Maintenance,Gas & Electricity - Boiler replacement,05/09/2012,1242982,"1,228.39",Lakers UK,A031787
North West Leicestershire District Council ,31UH ,Housing Repairs,HRAHRM,HRA Housing Repairs & Maintenance,Gas & Electricity - Boiler replacement,29/08/2012,1242495,"1,204.76",Lakers UK,A031787
North West Leicestershire District Council ,31UH ,Planning & Development,EDC,Environment - Development Control,Car Park Payment,26/09/2012,1243970,"1,191.81",Diocese of Nottingham,A036142
North West Leicestershire District Council ,31UH ,Property Services,PROPFM,Property Facilities Management,Water - Sewerage services,12/09/2012,1243214,"1,177.31",Severn Trent Water Limited,A001468
North West Leicestershire District Council ,31UH ,Finance,EXCH,Exchequer Services,Debt Collection,12/09/2012,1243308,"1,173.80",Kings Armoured Security Services Ltd,A004468
North West Leicestershire District Council ,31UH ,Housing,HRAHM,HRA Housing Management,Energy Surveys,26/09/2012,1244316,"1,156.00",Energico,A039091
North West Leicestershire District Council ,31UH ,Housing Repairs,HRAHRM,HRA Housing Repairs & Maintenance,Gas & Electricity - Boiler replacement,26/09/2012,1244132,"1,155.73",Lakers UK,A031787
North West Leicestershire District Council ,31UH ,Housing Repairs,HRAHRM,HRA Housing Repairs & Maintenance,Gas & Electricity - Boiler replacement,26/09/2012,1244134,"1,148.62",Lakers UK,A031787
North West Leicestershire District Council ,31UH ,Housing Repairs,HRAHRM,HRA Housing Repairs & Maintenance,Gas & Electricity - Boiler replacement,05/09/2012,1242977,"1,147.41",Lakers UK,A031787
North West Leicestershire District Council ,31UH ,Housing Repairs,HRAHRM,HRA Housing Repairs & Maintenance,Gas & Electricity - Boiler replacement,12/09/2012,1243404,"1,128.19",Lakers UK,A031787
North West Leicestershire District Council ,31UH ,Housing Repairs,HRAHRM,HRA Housing Repairs & Maintenance,Gas & Electricity - Boiler replacement,26/09/2012,1244231,"1,126.87",Lakers UK,A031787
North West Leicestershire District Council ,31UH ,Leisure Centres,HPLC,Hood Park Leisure Centre,Leisure - Astro turf maintenance,12/09/2012,1242479,"1,125.00",Technical Surfaces Ltd,A000516
North West Leicestershire District Council ,31UH ,Property Services,PROPFM,Property Facilities Management,"Building Contractors - Partitioning, Unit 11, The Courtyard",26/09/2012,1243853,"1,120.00",CPS Interiors Limited,A036393
North West Leicestershire District Council ,31UH ,Housing Repairs,HRAHRM,HRA Housing Repairs & Maintenance,Gas & Electricity - Boiler replacement,12/09/2012,1243379,"1,115.22",Lakers UK,A031787
North West Leicestershire District Council ,31UH ,Housing,HRAPBS,HRA Performance & Business Support,"ICT - Software, Maintenance and Licenses for IBS Housing",05/09/2012,1243111,"1,100.00",Capita Business Services Ltd,A002968
North West Leicestershire District Council ,31UH ,Housing Strategy,HS,Community - Housing Strategy,Accommodation - Hotel,26/09/2012,1244419,"1,083.40",Primrose Hotels Ltd T/A Hermitage Park Hotel,A010779
North West Leicestershire District Council ,31UH ,Housing Repairs,HRAHRM,HRA Housing Repairs & Maintenance,Gas & Electricity - Boiler replacement,26/09/2012,1244135,"1,070.16",Lakers UK,A031787
North West Leicestershire District Council ,31UH ,Leisure & Culture,CULTIC,Cultural Services TIC,Entertainment,19/09/2012,1243867,"1,045.80",Chapterhouse Theatre Company,A037693
North West Leicestershire District Council ,31UH ,Housing Repairs,HRAHRM,HRA Housing Repairs & Maintenance,Building Services - Housing - HPIP 9 - 10,29/08/2012,1242737,"1,026.55",Apollo Property Services Group Limited,A036945
North West Leicestershire District Council ,31UH ,Housing Repairs,HRAHRM,HRA Housing Repairs & Maintenance,Gas & Electricity - Boiler replacement,05/09/2012,1243017,"1,025.27",Lakers UK,A031787
North West Leicestershire District Council ,31UH ,Leisure Centres,HLC,Hermitage Leisure Centre,Water - Treatment Chemicals,12/09/2012,1243207,"1,009.20",Stowlin Ltd,A001591
North West Leicestershire District Council ,31UH ,Information Technology,ICT,ICT Services,Air Conditioning Systems,12/09/2012,1243604,"1,006.11",Electrum Services Limited,A035362
North West Leicestershire District Council ,31UH ,Neighbourhoods & Communities,NACCS,N & C Community Safety,grant,12/09/2012,1243279,"1,000.00",Oakthorpe youth Club,A039744
North West Leicestershire District Council ,31UH ,Leisure & Culture,LCM,Leisure & Cult Mangt,fund payment,19/09/2012,1243827,"1,000.00",Coalville Amateur Boxing Club,A038962
North West Leicestershire District Council ,31UH ,Neighbourhoods & Communities,NACCS,N & C Community Safety,Grant payment,19/09/2012,1243934,"1,000.00",North West Leicestershire,A013575
North West Leicestershire District Council ,31UH ,Leisure & Culture,CULTYP,Cultural Services Children & YoungPeople,Training,26/09/2012,1244294,"1,000.00",Stephenson College,A000373
North West Leicestershire District Council ,31UH ,Leisure Centres,HPLC,Hood Park Leisure Centre,Maintenance and Installation,19/09/2012,1243836,"1,000.00",Ryan Leisure Activities Ltd,A039523
North West Leicestershire District Council ,31UH ,Housing,HRAPBS,HRA Performance & Business Support,"ICT - Software, Maintenance and Licenses for IBS Housing",19/09/2012,1243750,"1,000.00",Capita Business Services Ltd,A002968
North West Leicestershire District Council ,31UH ,Street Management,ENOP,Environment Parks,Top Dressing,26/09/2012,1244278,996.00,Sherriff Amenity,A034991
North West Leicestershire District Council ,31UH ,Housing,HRAHM,HRA Housing Management,Catalogue stocks,28/08/2012,1242712,992.02,ESPO,A000958
North West Leicestershire District Council ,31UH ,Street Management,ENOT,Environment Transport,Vehicle Parts - Recycling Vehicles ,26/09/2012,1243808,984.44,Terberg Matec UK Limited,A001647
North West Leicestershire District Council ,31UH ,Housing Repairs,HRAHRM,HRA Housing Repairs & Maintenance,Building Services - Housing - HPIP 9 - 10,29/08/2012,1242733,980.51,Apollo Property Services Group Limited,A036945
North West Leicestershire District Council ,31UH ,Housing,HRAHM,HRA Housing Management,Water - Sewerage services,12/09/2012,1243472,973.93,Severn Trent Water Limited,A001468
North West Leicestershire District Council ,31UH ,Housing Repairs,HRAHRM,HRA Housing Repairs & Maintenance,Gas & Electricity - Boiler replacement,19/09/2012,1243635,966.80,Lakers UK,A031787
North West Leicestershire District Council ,31UH ,Housing,HRAOPS,HRA Older Persons Service,Artist,29/08/2012,1242465,968.16,Rikke Digerud,A039678
North West Leicestershire District Council ,31UH ,Planning & Development,EBC,Building Control,IT - Scanning equipment,07/11/2012,1244060,950.00,Idox Software Ltd,A034157
North West Leicestershire District Council ,31UH ,Housing Repairs,HRAHRM,HRA Housing Repairs & Maintenance,Gas & Electricity - Boiler replacement,05/09/2012,1242985,940.00,Lakers UK,A031787
North West Leicestershire District Council ,31UH ,Legal & Democratic,LDLS,Legal Services,Economic Partnership Payment,26/09/2012,1244306,938.73,Leicester City Council Accounts Receivable,A034295
North West Leicestershire District Council ,31UH ,Information Technology,ICT,ICT Services,Photocopiers and consumables,05/09/2012,1242832,938.71,Danwood Contract Rentals,A033719
North West Leicestershire District Council ,31UH ,Housing Repairs,HRAHRM,HRA Housing Repairs & Maintenance,Gas & Electricity - Boiler replacement,05/09/2012,1242984,932.09,Lakers UK,A031787
North West Leicestershire District Council ,31UH ,Housing Repairs,HRAHRM,HRA Housing Repairs & Maintenance,Gas & Electricity - Boiler replacement,26/09/2012,1244144,926.21,Lakers UK,A031787
North West Leicestershire District Council ,31UH ,Finance,EXCH,Exchequer Services,IT - software services,05/09/2012,1243101,909.95,Selima Limited,A010859
North West Leicestershire District Council ,31UH ,Legal & Democratic,LDELC,Electoral & Land Charges,Printing Electoral Documents,12/09/2012,1243183,906.20,SCI Print Limited,A028974
North West Leicestershire District Council ,31UH ,Housing Repairs,HRAHRM,HRA Housing Repairs & Maintenance,Building Services - Housing - HPIP 9 - 10,29/08/2012,1242735,894.70,Apollo Property Services Group Limited,A036945
North West Leicestershire District Council ,31UH ,Environmental Health,EES,Environmental Services,Building Services,19/09/2012,1243910,892.00,John Merison BMC Ltd,A001092
North West Leicestershire District Council ,31UH ,Street Management,ENOT,Environment Transport,Waste - Waste handling equipment manufacturer,05/09/2012,1242825,874.87,Geesink Norba Limited,A017895
North West Leicestershire District Council ,31UH ,Leisure Centres,HLBC,Hermitage Bar & Catering,Catering Supplies - Beverages,26/09/2012,1244128,847.60,WaverleyTBS Ltd,A032632
North West Leicestershire District Council ,31UH ,Housing Repairs,HRAHRM,HRA Housing Repairs & Maintenance,Gas & Electricity - Boiler replacement,12/09/2012,1243410,834.05,Lakers UK,A031787
North West Leicestershire District Council ,31UH ,Planning & Development,ECCTV,Environment - Town Centre/CCTV,Energy - Electricity - Contract 1,26/09/2012,1244310,832.52,Southern Electric,A030266
North West Leicestershire District Council ,31UH ,Legal & Democratic,LDCE,Civic Expenses,Sign Manufacturer,26/09/2012,1243852,824.24,G and G Signs,A001111
North West Leicestershire District Council ,31UH ,Street Management,ENOT,Environment Transport,Fuel ,29/08/2012,1242675,803.45,Pace Petroleum Ltd,A034942
North West Leicestershire District Council ,31UH ,Housing Repairs,HRAHRM,HRA Housing Repairs & Maintenance,Gas & Electricity - Boiler replacement,26/09/2012,1244142,800.00,Lakers UK,A031787
North West Leicestershire District Council ,31UH ,Housing Repairs,HRAHRM,HRA Housing Repairs & Maintenance,Gas & Electricity - Boiler replacement,29/08/2012,1242524,780.62,Lakers UK,A031787
North West Leicestershire District Council ,31UH ,Street Management,ENOT,Environment Transport,Commercial boybuilders and repairs,29/08/2012,1242071,780.00,SAUNDERS OF STAPLETON LTD,A029076
North West Leicestershire District Council ,31UH ,Housing Repairs,HRAHRM,HRA Housing Repairs & Maintenance,Gas & Electricity - Boiler replacement,12/09/2012,1243383,771.94,Lakers UK,A031787
North West Leicestershire District Council ,31UH ,Leisure Centres,HPLC,Hood Park Leisure Centre,Water - Treatment,05/09/2012,1242889,751.22,Biolab Uk Limited,A007793
North West Leicestershire District Council ,31UH ,Legal & Democratic,LDLS,Legal Services,Training - CLT Team Development Work,05/09/2012,1242443,750.00,Fields of Learning,A030537
North West Leicestershire District Council ,31UH ,Street Management,ENOT,Environment Transport,Bags - Polythene bags manufacturer,26/09/2012,1243855,749.70,BPI Recycled Products,A017624
North West Leicestershire District Council ,31UH ,Housing,HRAHM,HRA Housing Management,Energy Surveys,29/08/2012,1242468,748.00,Energico,A039091
North West Leicestershire District Council ,31UH ,Street Management,ENOT,Environment Transport,Vehicle Parts,05/09/2012,1239843,739.12,Dennis Eagle Limited,A000522
North West Leicestershire District Council ,31UH ,Street Management,ENOT,Environment Transport,Vehicle Parts,12/09/2012,1243277,730.69,Dennis Eagle Limited,A000522
North West Leicestershire District Council ,31UH ,Leisure Centres,HPBC,Hood Park Bar and Catering,Catering Supplies - Confectionery.,29/08/2012,1242691,714.96,Palmer Harvey Mclane Ltd,A001264
North West Leicestershire District Council ,31UH ,Housing Repairs,HRAHRM,HRA Housing Repairs & Maintenance,Gas & Electricity - Boiler replacement,12/09/2012,1243358,712.66,Lakers UK,A031787
North West Leicestershire District Council ,31UH ,Housing Repairs,HRAHRM,HRA Housing Repairs & Maintenance,Gas & Electricity - Boiler replacement,26/09/2012,1244143,700.00,Lakers UK,A031787
North West Leicestershire District Council ,31UH ,Housing Strategy,HS,Community - Housing Strategy,Accomodation - Bed and Breakfast for Housing Strategy,12/09/2012,1243488,700.00,Pinewood Lodge,A032364
North West Leicestershire District Council ,31UH ,Street Management,ENOT,Environment Transport,Fuel ,26/09/2012,1243961,696.76,Pace Petroleum Ltd,A034942
North West Leicestershire District Council ,31UH ,Planning & Development,EDC,Environment - Development Control,IT - Scanning equipment,26/09/2012,1244281,695.00,Allied Images Limited,A036688
North West Leicestershire District Council ,31UH ,Housing Repairs,HRAHRM,HRA Housing Repairs & Maintenance,Gas & Electricity - Boiler replacement,19/09/2012,1243657,692.00,Lakers UK,A031787
North West Leicestershire District Council ,31UH ,Leisure Centres,HLBC,Hermitage Bar & Catering,Catering Supplies - Beverages,26/09/2012,1244116,688.55,WaverleyTBS Ltd,A032632
North West Leicestershire District Council ,31UH ,Housing Repairs,HRAHRM,HRA Housing Repairs & Maintenance,PPE,26/09/2012,1244407,685.50,Westbury Industrial Supplies Limited,A009933
North West Leicestershire District Council ,31UH ,Housing,HRAHM,HRA Housing Management,Membership,05/09/2012,1242874,680.00,Social Landlords Crime &,A035396
North West Leicestershire District Council ,31UH ,Housing Repairs,HRAHRM,HRA Housing Repairs & Maintenance,Gas & Electricity - Boiler replacement,29/08/2012,1242579,679.99,Lakers UK,A031787
North West Leicestershire District Council ,31UH ,Street Management,ENOT,Environment Transport,Waste - Waste handling equipment manufacturer,05/09/2012,1243093,679.31,Geesink Norba Limited,A017895
North West Leicestershire District Council ,31UH ,Housing Repairs,HRAHRM,HRA Housing Repairs & Maintenance,Gas & Electricity - Boiler replacement,12/09/2012,1243401,674.29,Lakers UK,A031787
North West Leicestershire District Council ,31UH ,Housing Repairs,HRAHRM,HRA Housing Repairs & Maintenance,Building Services - Housing - HPIP 9 - 10,29/08/2012,1242736,672.75,Apollo Property Services Group Limited,A036945
North West Leicestershire District Council ,31UH ,Leisure Centres,HLC,Hermitage Leisure Centre,Leisure - Recreational equipment supplier,26/09/2012,1244420,671.12,Technogym Uk Limited,A001642
North West Leicestershire District Council ,31UH ,Housing Repairs,HRAHRM,HRA Housing Repairs & Maintenance,PPE,12/09/2012,1243215,665.13,Westbury Industrial Supplies Limited,A009933
North West Leicestershire District Council ,31UH ,Corporate Director,HR,Human Resources,Criminal Records Checks,12/09/2012,1243584,660.00,Criminal Records Bureau,A027625
North West Leicestershire District Council ,31UH ,Leisure Centres,HLBC,Hermitage Bar & Catering,Catering Supplies - Confectionery.,29/08/2012,1242690,658.09,Palmer Harvey Mclane Ltd,A001264
North West Leicestershire District Council ,31UH ,Housing Repairs,HRAHRM,HRA Housing Repairs & Maintenance,Gas & Electricity - Boiler replacement,05/09/2012,1243025,653.54,Lakers UK,A031787
North West Leicestershire District Council ,31UH ,Housing Repairs,HRAHRM,HRA Housing Repairs & Maintenance,Gas & Electricity - Boiler replacement,26/09/2012,1244242,652.35,Lakers UK,A031787
North West Leicestershire District Council ,31UH ,Street Management,ENOT,Environment Transport,Road fund licences,26/09/2012,1243993,650.00,Post Office Limited,A008559
North West Leicestershire District Council ,31UH ,Leisure Centres,HLC,Hermitage Leisure Centre,Entertainment,29/08/2012,1242623,650.00,Vocals Entertainment Ltd,A033748
North West Leicestershire District Council ,31UH ,Leisure Centres,HPLC,Hood Park Leisure Centre,Entertainment,05/09/2012,1242885,650.00,Vocals Entertainment Ltd,A033748
North West Leicestershire District Council ,31UH ,Leisure Centres,HLC,Hermitage Leisure Centre,Entertainment,29/08/2012,1242603,650.00,Vocals Entertainment Ltd,A033748
North West Leicestershire District Council ,31UH ,Street Management,ENOGT,Environment General Technician,Professional cleansing,05/09/2012,1242831,650.00,Aqua-Jet Specialist Drainage Contractors Ltd,A039691
North West Leicestershire District Council ,31UH ,Leisure Centres,HLC,Hermitage Leisure Centre,NCC Framework Contract Access,26/09/2012,1244063,641.67,Nottinghamshire County Council,A001225
North West Leicestershire District Council ,31UH ,Housing Repairs,HRAHRM,HRA Housing Repairs & Maintenance,Gas & Electricity - Boiler replacement,05/09/2012,1242934,640.85,Lakers UK,A031787
North West Leicestershire District Council ,31UH ,Housing Repairs,HRAHRM,HRA Housing Repairs & Maintenance,Gas & Electricity - Boiler replacement,29/08/2012,1242537,639.02,Lakers UK,A031787
North West Leicestershire District Council ,31UH ,Housing Repairs,HRAHRM,HRA Housing Repairs & Maintenance,Gas & Electricity - Boiler replacement,29/08/2012,1242541,635.00,Lakers UK,A031787
North West Leicestershire District Council ,31UH ,Corporate Director,HR,Human Resources,training,12/09/2012,1243605,631.99,ICS,A039751
North West Leicestershire District Council ,31UH ,Information Technology,ICT,ICT Services,Photocopiers and consumables,12/09/2012,1243575,630.36,The Danwood Group Ltd,A001301
North West Leicestershire District Council ,31UH ,Housing Repairs,HRAHRM,HRA Housing Repairs & Maintenance,Gas & Electricity - Boiler replacement,29/08/2012,1242555,629.84,Lakers UK,A031787
North West Leicestershire District Council ,31UH ,Housing Repairs,HRAHRM,HRA Housing Repairs & Maintenance,Gas & Electricity - Boiler replacement,29/08/2012,1242540,617.76,Lakers UK,A031787
North West Leicestershire District Council ,31UH ,Housing Repairs,HRAHRM,HRA Housing Repairs & Maintenance,Gas & Electricity - Boiler replacement,29/08/2012,1242578,615.28,Lakers UK,A031787
North West Leicestershire District Council ,31UH ,Corporate Director,HR,Human Resources,Medical fees,05/09/2012,1242823,614.00,Forge Health Limited,A031645
North West Leicestershire District Council ,31UH ,Leisure & Culture,CULTEV,Cultural Services Arts & Events,Training - Environmental Crime,12/09/2012,1243222,610.00,GovNet Communications,A032865
North West Leicestershire District Council ,31UH ,Street Management,ENOWM,Environment Waste Management,Leasing - Vehicles and Equipment,12/09/2012,1243316,607.64,Commercial Vehicle Finance Ltd,A033049
North West Leicestershire District Council ,31UH ,Housing,HRAPBS,HRA Performance & Business Support,Mail services - Postage,19/09/2012,1243904,604.94,DX Network Services Limited,A000743
North West Leicestershire District Council ,31UH ,Leisure Centres,HLC,Hermitage Leisure Centre,Claim,29/08/2012,1242639,604.17,Measham Leisure Centre,A027454
North West Leicestershire District Council ,31UH ,Street Management,ENOT,Environment Transport,Tyre Supplier,12/09/2012,1243191,603.27,Malvern Tyres,A035175
North West Leicestershire District Council ,31UH ,Street Management,ENOP,Environment Parks,Horticulture - Weed Remover Products,12/09/2012,1242916,600.00,Complete Weed Control,A000392
North West Leicestershire District Council ,31UH ,Street Management,ENOT,Environment Transport,road Maintenance,05/09/2012,1242926,600.00,Leicestershire County Counc,A002693
North West Leicestershire District Council ,31UH ,Leisure Centres,HLC,Hermitage Leisure Centre,Water - Sewerage services,05/09/2012,1242837,597.00,Severn Trent Water Limited,A001468
North West Leicestershire District Council ,31UH ,Leisure Centres,HLC,Hermitage Leisure Centre,Water - Sewerage services,26/09/2012,1244111,597.00,Severn Trent Water Limited,A001468
North West Leicestershire District Council ,31UH ,Housing Repairs,HRAHRM,HRA Housing Repairs & Maintenance,Building Services - Housing - HPIP 9 - 10,19/09/2012,1243918,597.00,Apollo Property Services Group Limited,A036945
North West Leicestershire District Council ,31UH ,Housing Repairs,HRAHRM,HRA Housing Repairs & Maintenance,Building Services - Housing - HPIP 9 - 10,19/09/2012,1243919,597.00,Apollo Property Services Group Limited,A036945
North West Leicestershire District Council ,31UH ,Housing Repairs,HRAHRM,HRA Housing Repairs & Maintenance,Building Services - Housing - HPIP 9 - 10,19/09/2012,1243920,597.00,Apollo Property Services Group Limited,A036945
North West Leicestershire District Council ,31UH ,Housing Repairs,HRAHRM,HRA Housing Repairs & Maintenance,Gas & Electricity - Boiler replacement,29/08/2012,1242580,596.60,Lakers UK,A031787
North West Leicestershire District Council ,31UH ,Housing Repairs,HRAHRM,HRA Housing Repairs & Maintenance,Gas & Electricity - Boiler replacement,26/09/2012,1244213,591.50,Lakers UK,A031787
North West Leicestershire District Council ,31UH ,Street Management,ENOT,Environment Transport,Vehicle Parts - Recycling Vehicles ,12/09/2012,1243196,582.96,Terberg Matec UK Limited,A001647
North West Leicestershire District Council ,31UH ,Housing Repairs,HRAHRM,HRA Housing Repairs & Maintenance,Gas & Electricity - Boiler replacement,12/09/2012,1243352,581.42,Lakers UK,A031787
North West Leicestershire District Council ,31UH ,Leisure Centres,HLC,Hermitage Leisure Centre,Sport Activities,05/09/2012,1242852,581.25,Tri Slacklining Ltd,A039726
North West Leicestershire District Council ,31UH ,Information Technology,ICT,ICT Services,Telecommunication - Line Rental,24/10/2012,1242901,580.83,Virgin Media Business,A035373
North West Leicestershire District Council ,31UH ,Housing,HRAOPS,HRA Older Persons Service,Rent payments,05/09/2012,1242797,578.12,Leicestershire County Council,A000950
North West Leicestershire District Council ,31UH ,Housing Repairs,HRAHRM,HRA Housing Repairs & Maintenance,Gas & Electricity - Boiler replacement,05/09/2012,1243001,566.28,Lakers UK,A031787
North West Leicestershire District Council ,31UH ,Street Management,ENOGT,Environment General Technician,Drainage - drain cleaning,12/09/2012,1242232,560.00,County Drains Leicester Ltd,A024295
North West Leicestershire District Council ,31UH ,Leisure & Culture,CULTEV,Cultural Services Arts & Events,Training,12/09/2012,1243522,557.00,West Leicestershire Community First Responder Group,A039754
North West Leicestershire District Council ,31UH ,Leisure & Culture,CULTEV,Cultural Services Arts & Events,Events and Festivals,12/09/2012,1243150,541.67,Whitwick Community Coffee Shop,A033968
North West Leicestershire District Council ,31UH ,Housing Repairs,HRAHRM,HRA Housing Repairs & Maintenance,Gas & Electricity - Boiler replacement,12/09/2012,1243423,541.27,Lakers UK,A031787
North West Leicestershire District Council ,31UH ,Housing Repairs,HRAHRM,HRA Housing Repairs & Maintenance,PPE,26/09/2012,1244405,541.28,Westbury Industrial Supplies Limited,A009933
North West Leicestershire District Council ,31UH ,Leisure & Culture,CULTIC,Cultural Services TIC,Rent payments,19/09/2012,1243869,537.50,Leicestershire County Council,A000950
North West Leicestershire District Council ,31UH ,Property Services,PROPCL,Property Commercial Lettings,Professional services,19/09/2012,1243821,520.00,Premier Windows and,A037627
North West Leicestershire District Council ,31UH ,Property Services,PROPCL,Property Commercial Lettings,Rental/Maintenance charges,05/09/2012,1242830,514.03,Pitney Bowes Finance Plc,A032630
North West Leicestershire District Council ,31UH ,Leisure Centres,HLBC,Hermitage Bar & Catering,Catering Supplies - Confectionery.,12/09/2012,1243326,516.05,Palmer Harvey Mclane Ltd,A001264
North West Leicestershire District Council ,31UH ,Leisure Centres,HLC,Hermitage Leisure Centre,Service Contractors - Chlorine Gas Alarm,29/08/2012,1242379,510.00,Draeger,A028498
North West Leicestershire District Council ,31UH ,Leisure Centres,CDCC,Castle Donington Community College,Portable accommodation,26/09/2012,1243998,500.00,Elliott Group Limited,A005413
North West Leicestershire District Council ,31UH ,Neighbourhoods & Communities,NACCS,N & C Community Safety,Entertainment,19/09/2012,1243933,500.00,Galli Galli,A039767
North West Leicestershire District Council ,31UH ,Planning & Development,EDC,Environment - Development Control,Rent payments,29/08/2012,1241281,500.00,Leicestershire County Council,A000950
North West Leicestershire District Council ,31UH ,Finance,FINPLA,Financial Planning,professional services,26/09/2012,1244276,500.00,Coactiva Aspiren Ltd,A039745
North West Leicestershire District Council ,31UH ,Housing,HRAPBS,HRA Performance & Business Support,Training  - Post Grad Diploma,19/09/2012,1243801,500.00,University of Warwick,A036455
North West Leicestershire District Council ,31UH ,Leisure Centres,HLC,Hermitage Leisure Centre,Claim,29/08/2012,1242641,0.00,Measham Leisure Centre,A027454
,,,,,,,,"1,778,978.20",,
